fUSD/lending_fUSD_20260605
["ID","MTS","AMOUNT","RATE_DAILY","PERIOD"]
[424171677,1780626660000,-352.33,0.00028756,7]
[424171675,1780626660000,-352.33,0.00028725,2]
[424171703,1780626660000,-352.33,0.00028947,7]
[424171681,1780626660000,-1711.94,0.000288,7]
[424171682,1780626660000,-215.77576141,0.000288,10]
[424171683,1780626660000,-572.39,0.00028819,2]
[424171684,1780626660000,-1030.31,0.00028819,2]
[424171685,1780626660000,-1054.8,0.00028819,2]
[424171680,1780626660000,-352.33,0.00028788,30]
[424171693,1780626660000,-151.0,0.00028867,2]
[424171686,1780626660000,-1063.32,0.00028819,2]
[424171697,1780626660000,-4984.47681238,0.000289,2]
[424171694,1780626660000,-352.33,0.00028883,30]
[424171696,1780626660000,-4984.47681238,0.000289,2]
[424171695,1780626660000,-4984.47681238,0.000289,2]
[424171702,1780626660000,-352.33,0.00028915,2]
[424171692,1780626660000,-150.0,0.00028855,2]
[424171691,1780626660000,-352.33,0.00028852,7]
[424171687,1780626660000,-1049.05,0.00028819,2]
[424171689,1780626660000,-352.33,0.0002882,2]
[424171690,1780626660000,-154.32416432,0.00028846,20]
[424171688,1780626660000,-577.02,0.00028819,2]
[424171734,1780626661000,-250.0,0.00029,2]
[424171748,1780626661000,-159.6615984,0.00029038,2]
[424171743,1780626661000,-215.77576141,0.00029,7]
[424171744,1780626661000,-1085.43,0.00029,30]
[424171747,1780626661000,-290.0,0.00029034,2]
[424171757,1780626661000,-468.61759179,0.00029046,2]
[424171755,1780626661000,-403.30610304,0.00029046,2]
[424171754,1780626661000,-383.49468055,0.00029046,2]
[424171758,1780626661000,-307.71187227,0.00029046,2]
[424171756,1780626661000,-374.65690559,0.00029046,2]
[424171745,1780626661000,-352.33,0.0002901,2]
[424171751,1780626661000,-1354.7941438,0.00029044,2]
[424171749,1780626661000,-162.93373167,0.00029038,2]
[424171759,1780626661000,-220.00249573,0.00029048,2]
[424171746,1780626661000,-200.0,0.00029016,2]
[424171741,1780626661000,-215.77576141,0.00029,30]
[424171750,1780626661000,-352.33,0.00029042,7]
[424171739,1780626661000,-500.0,0.00029,2]
[424171740,1780626661000,-500.0,0.00029,2]
[424171736,1780626661000,-250.0,0.00029,2]
[424171738,1780626661000,-500.0,0.00029,2]
[424171733,1780626661000,-250.0,0.00029,2]
[424171737,1780626661000,-293.657542,0.00029,2]
[424171735,1780626661000,-250.0,0.00029,2]
[424171732,1780626661000,-500.0,0.00029,2]
[424171731,1780626661000,-500.0,0.00029,2]
[424171730,1780626661000,-3108.0,0.00029,7]
[424171742,1780626661000,-192.02883074,0.00029,2]
[424171753,1780626661000,-440.1191915,0.00029046,2]
[424171768,1780626661000,-400.27393139,0.00029058,2]
[424171760,1780626661000,-355.75926846,0.00029048,2]
[424171752,1780626661000,-3226.89316349,0.00029046,2]
[424171785,1780626661000,-1049.05,0.00029152,7]
[424171788,1780626661000,-1188.11,0.000292,7]
[424171781,1780626661000,-572.39,0.00029152,7]
[424171786,1780626661000,-577.02,0.00029152,7]
[424171780,1780626661000,-352.33,0.00029137,7]
[424171783,1780626661000,-1054.8,0.00029152,7]
[424171784,1780626661000,-1063.32,0.00029152,7]
[424171787,1780626661000,-352.33,0.00029169,30]
[424171782,1780626661000,-1030.31,0.00029152,7]
[424171779,1780626661000,-300.86756511,0.0002913,7]
[424171778,1780626661000,-352.33,0.00029105,2]
[424171777,1780626661000,-3313.0,0.000291,2]
[424171775,1780626661000,-504.0,0.00029071,4]
[424171789,1780626661000,-352.33,0.00029201,2]
[424171776,1780626661000,-352.33,0.00029074,30]
[424171774,1780626661000,-167.82903017,0.00029058,2]
[424171763,1780626661000,-341.62844905,0.00029048,2]
[424171762,1780626661000,-170.91703538,0.00029048,2]
[424171765,1780626661000,-162.69279375,0.00029048,2]
[424171764,1780626661000,-157.63383014,0.00029048,2]
[424171769,1780626661000,-328.08341768,0.00029058,2]
[424171761,1780626661000,-322.4104308,0.00029048,2]
[424171766,1780626661000,-330.32264732,0.00029048,2]
[424171772,1780626661000,-178.15640456,0.00029058,2]
[424171771,1780626661000,-207.93591148,0.00029058,2]
[424171770,1780626661000,-178.77908072,0.00029058,2]
[424171773,1780626661000,-367.049922,0.00029058,2]
[424171767,1780626661000,-307.64684742,0.00029053,2]
[424171826,1780626662000,-572.39,0.00029485,30]
[424171830,1780626662000,-1049.05,0.00029485,30]
[424171833,1780626662000,-1711.94,0.000295,7]
[424171828,1780626662000,-1030.31,0.00029485,30]
[424171823,1780626662000,-3226.89316349,0.00029388,2]
[424171824,1780626662000,-498.00519382,0.0002939,2]
[424171822,1780626662000,-526.0,0.00029371,30]
[424171825,1780626662000,-563.59,0.00029485,30]
[424171821,1780626662000,-1794.0,0.00029371,30]
[424171832,1780626662000,-577.02,0.00029485,30]
[424171827,1780626662000,-1038.59,0.00029485,30]
[424171835,1780626662000,-504.02425925,0.00029527,2]
[424171831,1780626662000,-1063.32,0.00029485,30]
[424171834,1780626662000,-152.0,0.00029525,4]
[424171836,1780626662000,-200.0,0.00029532,2]
[424171837,1780626662000,-1120.72356124,0.00029533,5]
[424171820,1780626662000,-997.0,0.00029371,30]
[424171844,1780626662000,-1108.78175319,0.00029533,5]
[424171839,1780626662000,-1117.00953621,0.00029533,5]
[424171840,1780626662000,-1004.94483916,0.00029533,5]
[424171838,1780626662000,-1020.03167313,0.00029533,5]
[424171842,1780626662000,-1062.23510278,0.00029533,5]
[424171841,1780626662000,-1101.09807853,0.00029533,5]
[424171843,1780626662000,-1077.20935093,0.00029533,5]
[424171829,1780626662000,-1054.8,0.00029485,30]
[424171817,1780626662000,-729.0,0.0002937,30]
[424171812,1780626662000,-2710.0,0.0002937,30]
[424171816,1780626662000,-3579.0,0.0002937,30]
[424171792,1780626662000,-352.48,0.00029232,7]
[424171791,1780626662000,-352.39,0.00029232,7]
[424171793,1780626662000,-528.5,0.00029271,7]
[424171790,1780626662000,-350.0,0.00029214,2]
[424171796,1780626662000,-2000.0,0.0002929,2]
[424171794,1780626662000,-290.3986294,0.00029278,2]
[424171798,1780626662000,-269.88,0.0002929,2]
[424171795,1780626662000,-257.7,0.0002929,2]
[424171797,1780626662000,-1048.74,0.0002929,2]
[424171799,1780626662000,-2000.0,0.0002929,2]
[424171801,1780626662000,-229.4,0.0002929,2]
[424171806,1780626662000,-1049.05,0.00029319,2]
[424171819,1780626662000,-3521.0,0.00029371,30]
[424171804,1780626662000,-1054.8,0.00029319,2]
[424171803,1780626662000,-1030.31,0.00029319,2]
[424171802,1780626662000,-572.39,0.00029319,2]
[424171805,1780626662000,-1063.32,0.00029319,2]
[424171810,1780626662000,-453.0,0.0002937,30]
[424171808,1780626662000,-186.17752465,0.00029343,2]
[424171809,1780626662000,-761.0,0.00029364,30]
[424171807,1780626662000,-577.02,0.00029319,2]
[424171811,1780626662000,-512.0,0.0002937,30]
[424171814,1780626662000,-914.0,0.0002937,30]
[424171813,1780626662000,-2529.0,0.0002937,30]
[424171815,1780626662000,-590.0,0.0002937,30]
[424171818,1780626662000,-686.0,0.00029371,30]
[424171800,1780626662000,-810.47,0.0002929,2]
[424171845,1780626662000,-1068.17322378,0.00029533,5]
[424171846,1780626662000,-1073.69073209,0.00029533,5]
[424171847,1780626662000,-1119.03905324,0.00029533,5]
[424171878,1780626662000,-220.0,0.00029859,2]
[424171881,1780626662000,-208.58,0.00029859,2]
[424171891,1780626662000,-188.0,0.00029859,2]
[424171848,1780626662000,-1117.29134837,0.00029533,5]
[424171883,1780626662000,-242.103,0.00029859,2]
[424171882,1780626662000,-247.204,0.00029859,2]
[424171885,1780626662000,-166.946,0.00029859,2]
[424171884,1780626662000,-250.0,0.00029859,2]
[424171886,1780626662000,-246.38,0.00029859,2]
[424171887,1780626662000,-250.0,0.00029859,2]
[424171888,1780626662000,-167.45,0.00029859,2]
[424171890,1780626662000,-151.376,0.00029859,2]
[424171889,1780626662000,-150.0,0.00029859,2]
[424171892,1780626662000,-2000.0,0.0002987,2]
[424171896,1780626662000,-319.3231968,0.00029909,2]
[424171895,1780626662000,-195.36240932,0.00029909,2]
[424171894,1780626662000,-30457.89040555,0.000299,2]
[424171897,1780626662000,-180.82167358,0.00029909,2]
[424171898,1780626662000,-440.5747823,0.00029909,2]
[424171893,1780626662000,-489.87,0.0002987,2]
[424171899,1780626662000,-325.86746334,0.00029909,2]
[424171901,1780626662000,-244.62240386,0.00029909,2]
[424171900,1780626662000,-281.26505032,0.00029909,2]
[424171902,1780626662000,-150.13151226,0.00029914,2]
[424171903,1780626662000,-243.16403363,0.00029917,2]
[424171877,1780626662000,-277.0,0.00029859,2]
[424171874,1780626662000,-528.5,0.00029848,2]
[424171880,1780626662000,-174.0,0.00029859,2]
[424171879,1780626662000,-230.0,0.00029859,2]
[424171854,1780626662000,-1040.99590002,0.00029533,5]
[424171855,1780626662000,-1118.44271129,0.00029533,5]
[424171856,1780626662000,-1009.47226062,0.00029533,5]
[424171849,1780626662000,-1115.56244748,0.00029533,5]
[424171851,1780626662000,-1067.69420764,0.00029533,5]
[424171853,1780626662000,-1105.54044534,0.00029533,5]
[424171852,1780626662000,-1068.82471846,0.00029533,5]
[424171869,1780626662000,-1188.11,0.000298,7]
[424171858,1780626662000,-1101.02317875,0.00029533,5]
[424171860,1780626662000,-1047.11791419,0.00029533,5]
[424171859,1780626662000,-1053.26685299,0.00029533,5]
[424171862,1780626662000,-1504.693734,0.00029534,15]
[424171867,1780626662000,-504.0,0.00029716,4]
[424171857,1780626662000,-1007.16717008,0.00029533,5]
[424171863,1780626662000,-528.5,0.0002956,30]
[424171875,1780626662000,-200.0,0.00029859,2]
[424171876,1780626662000,-200.0,0.00029859,2]
[424171870,1780626662000,-644.79446245,0.00029823,2]
[424171871,1780626662000,-335.92023928,0.00029823,2]
[424171873,1780626662000,-500.0,0.00029843,2]
[424171868,1780626662000,-186.17752465,0.00029716,2]
[424171872,1780626662000,-270.70681905,0.00029826,2]
[424171864,1780626662000,-1030.31,0.00029652,7]
[424171850,1780626662000,-1118.08549743,0.00029533,5]
[424171866,1780626662000,-350.0,0.00029711,2]
[424171865,1780626662000,-1049.05,0.00029652,7]
[424171861,1780626662000,-1418.01929098,0.00029533,5]
[424172015,1780626663000,-930.00012045,0.00030137,120]
[424172016,1780626663000,-930.00000602,0.00030137,120]
[424172023,1780626663000,-350.7,0.00030137,2]
[424172020,1780626663000,-609.0,0.00030137,120]
[424172022,1780626663000,-382.6,0.00030137,2]
[424172024,1780626663000,-200.0,0.00030137,2]
[424172019,1780626663000,-277.18,0.00030137,120]
[424172018,1780626663000,-930.00000002,0.00030137,120]
[424172017,1780626663000,-930.0000003,0.00030137,120]
[424172021,1780626663000,-200.0,0.00030137,2]
[424172025,1780626663000,-336.05,0.00030137,2]
[424172014,1780626663000,-930.00240898,0.00030137,120]
[424171929,1780626663000,-209.84578,0.00029928,2]
[424171939,1780626663000,-550.574883,0.0002993,2]
[424171931,1780626663000,-600.41089709,0.0002993,2]
[424171933,1780626663000,-357.55816144,0.0002993,2]
[424171936,1780626663000,-415.87182297,0.0002993,2]
[424171935,1780626663000,-227.7136351,0.0002993,2]
[424171932,1780626663000,-183.61105944,0.0002993,2]
[424171934,1780626663000,-185.08254563,0.0002993,2]
[424171950,1780626663000,-20252.81359646,0.0003,2]
[424171944,1780626663000,-195.50135077,0.00029942,2]
[424171945,1780626663000,-231.14030478,0.00029942,2]
[424171937,1780626663000,-262.69725635,0.0002993,2]
[424171940,1780626663000,-227.95279524,0.0002993,2]
[424171948,1780626663000,-25328.94809246,0.0003,5]
[424171949,1780626663000,-1941.91000824,0.0003,3]
[424171943,1780626663000,-180.0,0.00029934,4]
[424171951,1780626663000,-70727.59586373,0.0003,2]
[424171946,1780626663000,-200.98541302,0.00029942,2]
[424171941,1780626663000,-205.33796595,0.0002993,2]
[424171947,1780626663000,-249.18572053,0.00029973,2]
[424171963,1780626663000,-650.0,0.0003,2]
[424171954,1780626663000,-1124.73179695,0.0003,2]
[424171953,1780626663000,-11180.83894307,0.0003,2]
[424171955,1780626663000,-1851.88994905,0.0003,2]
[424171942,1780626663000,-335.65806034,0.0002993,2]
[424171956,1780626663000,-897.93931998,0.0003,10]
[424171927,1780626663000,-461.47027113,0.00029924,2]
[424171928,1780626663000,-189.40412295,0.00029928,2]
[424172013,1780626663000,-930.04817964,0.00030137,120]
[424171904,1780626663000,-269.38284866,0.00029917,2]
[424171914,1780626663000,-533.63890269,0.00029919,2]
[424171909,1780626663000,-702.92638768,0.00029918,2]
[424171905,1780626663000,-660.17878725,0.00029918,2]
[424171907,1780626663000,-604.95915456,0.00029918,2]
[424171906,1780626663000,-575.24202082,0.00029918,2]
[424171913,1780626663000,-440.00499147,0.00029919,2]
[424171908,1780626663000,-561.98535839,0.00029918,2]
[424171912,1780626663000,-226.61606536,0.00029919,2]
[424171911,1780626663000,-240.31534814,0.00029919,2]
[424171930,1780626663000,-492.12512652,0.0002993,2]
[424171910,1780626663000,-461.5678084,0.00029918,2]
[424171915,1780626663000,-288.16282653,0.00029919,2]
[424171917,1780626663000,-366.89809898,0.00029919,2]
[424171926,1780626663000,-495.48397097,0.00029919,2]
[424171919,1780626663000,-341.83407077,0.00029919,2]
[424171918,1780626663000,-483.6156462,0.00029919,2]
[424171921,1780626663000,-169.28969357,0.00029919,2]
[424171925,1780626663000,-325.38558749,0.00029919,2]
[424171923,1780626663000,-315.26766027,0.00029919,2]
[424171920,1780626663000,-512.44267358,0.00029919,2]
[424171922,1780626663000,-414.20691907,0.00029919,2]
[424171924,1780626663000,-253.97173675,0.00029919,2]
[424171916,1780626663000,-209.29687403,0.00029919,2]
[424171952,1780626663000,-2000.0,0.0003,3]
[424171938,1780626663000,-356.31280911,0.0002993,2]
[424171958,1780626663000,-166.0833877,0.0003,2]
[424171981,1780626663000,-151.0,0.00030127,7]
[424171991,1780626663000,-539.71,0.00030137,2]
[424171996,1780626663000,-2500.0,0.00030137,120]
[424171997,1780626663000,-500.0,0.00030137,3]
[424171999,1780626663000,-500.0,0.00030137,3]
[424171995,1780626663000,-1000.0,0.00030137,120]
[424172001,1780626663000,-152.4991,0.00030137,2]
[424171993,1780626663000,-194.60115358,0.00030137,2]
[424171990,1780626663000,-200.0,0.00030136,2]
[424172000,1780626663000,-500.0,0.00030137,3]
[424171992,1780626663000,-271.58,0.00030137,2]
[424171979,1780626663000,-151.0,0.00030127,7]
[424171994,1780626663000,-389.20230715,0.00030137,2]
[424172005,1780626663000,-200.0,0.00030137,2]
[424172003,1780626663000,-500.0,0.00030137,3]
[424172006,1780626663000,-200.0,0.00030137,2]
[424172004,1780626663000,-181.0,0.00030137,120]
[424172009,1780626663000,-150.0,0.00030137,2]
[424172010,1780626663000,-288.0,0.00030137,2]
[424172007,1780626663000,-174.0,0.00030137,2]
[424172011,1780626663000,-210.05,0.00030137,30]
[424172008,1780626663000,-150.0,0.00030137,2]
[424172012,1780626663000,-930.96359283,0.00030137,120]
[424171957,1780626663000,-1000.0,0.0003,2]
[424172002,1780626663000,-500.0,0.00030137,3]
[424171982,1780626663000,-1094.03985018,0.0003013,2]
[424171998,1780626663000,-500.0,0.00030137,3]
[424171989,1780626663000,-151.0,0.0003013,7]
[424171959,1780626663000,-4661.38053202,0.0003,24]
[424171980,1780626663000,-151.0,0.00030127,7]
[424171964,1780626663000,-153.89720939,0.0003,2]
[424171962,1780626663000,-11344.90742289,0.0003,2]
[424171961,1780626663000,-7580.30638163,0.0003,2]
[424171960,1780626663000,-9908.01490553,0.0003,14]
[424171966,1780626663000,-677.49,0.0003,7]
[424171965,1780626663000,-330.0,0.0003,30]
[424171977,1780626663000,-186.17752465,0.00030088,2]
[424171972,1780626663000,-1045.52622774,0.00030033,7]
[424171968,1780626663000,-167.0,0.0003,14]
[424171967,1780626663000,-163.0,0.0003,14]
[424171976,1780626663000,-200.0,0.00030082,2]
[424171971,1780626663000,-200.0,0.0003,2]
[424171988,1780626663000,-1917.7331533,0.0003013,2]
[424171974,1780626663000,-150.0,0.00030048,2]
[424171978,1780626663000,-3108.0,0.000301,7]
[424171986,1780626663000,-302.47256394,0.0003013,2]
[424171984,1780626663000,-646.06446933,0.0003013,2]
[424171983,1780626663000,-14120.52543672,0.0003013,2]
[424171987,1780626663000,-3063196.79246992,0.0003013,7]
[424171969,1780626663000,-200.0,0.0003,2]
[424171973,1780626663000,-150.0,0.00030039,2]
[424171970,1780626663000,-173.0,0.0003,14]
[424171975,1780626663000,-240.52273096,0.0003008,2]
[424171985,1780626663000,-205.52823685,0.0003013,2]
[424172066,1780626664000,-997.0,0.00030371,30]
[424172065,1780626664000,-3521.0,0.00030371,30]
[424172067,1780626664000,-1794.0,0.00030371,30]
[424172076,1780626664000,-186.17752465,0.00030461,2]
[424172061,1780626664000,-590.0,0.0003037,30]
[424172053,1780626664000,-2587.33711811,0.00030338,2]
[424172059,1780626664000,-2529.0,0.0003037,30]
[424172060,1780626664000,-914.0,0.0003037,30]
[424172056,1780626664000,-453.0,0.0003037,30]
[424172058,1780626664000,-2710.0,0.0003037,30]
[424172069,1780626664000,-200.0,0.00030383,2]
[424172062,1780626664000,-3579.0,0.0003037,30]
[424172075,1780626664000,-200.0,0.00030438,2]
[424172086,1780626664000,-255.62735591,0.00030498,2]
[424172073,1780626664000,-200.0,0.00030437,2]
[424172068,1780626664000,-526.0,0.00030371,30]
[424172072,1780626664000,-2587.33711811,0.00030413,2]
[424172074,1780626664000,-200.0,0.00030438,2]
[424172070,1780626664000,-1188.11,0.000304,7]
[424172078,1780626664000,-660.86217345,0.0003049,2]
[424172077,1780626664000,-478.9847952,0.0003049,2]
[424172087,1780626664000,-240.72063828,0.00030498,2]
[424172088,1780626664000,-486.32806725,0.00030498,2]
[424172080,1780626664000,-562.53010063,0.0003049,2]
[424172083,1780626664000,-300.26302451,0.00030495,2]
[424172057,1780626664000,-512.0,0.0003037,30]
[424172085,1780626664000,-154.67999322,0.00030498,2]
[424172071,1780626664000,-178.9,0.00030411,120]
[424172063,1780626664000,-729.0,0.0003037,30]
[424172038,1780626664000,-152.0,0.0003015,120]
[424172064,1780626664000,-686.0,0.00030371,30]
[424172081,1780626664000,-489.24480773,0.0003049,2]
[424172026,1780626664000,-329.39,0.00030137,2]
[424172033,1780626664000,-150.0,0.00030137,2]
[424172031,1780626664000,-150.0,0.00030137,2]
[424172039,1780626664000,-151.0,0.00030197,7]
[424172027,1780626664000,-150.0,0.00030137,2]
[424172030,1780626664000,-150.0,0.00030137,2]
[424172034,1780626664000,-156.57780002,0.00030137,2]
[424172035,1780626664000,-285.39,0.00030137,2]
[424172037,1780626664000,-1280.36,0.00030137,7]
[424172032,1780626664000,-150.0,0.00030137,2]
[424172036,1780626664000,-285.39,0.00030137,2]
[424172028,1780626664000,-150.0,0.00030137,2]
[424172029,1780626664000,-150.0,0.00030137,2]
[424172040,1780626664000,-15814.82281071,0.000302,2]
[424172042,1780626664000,-882.52,0.000302,14]
[424172043,1780626664000,-1711.94,0.000302,7]
[424172044,1780626664000,-330.83,0.000302,2]
[424172041,1780626664000,-173.05,0.000302,2]
[424172046,1780626664000,-246.11,0.00030236,30]
[424172049,1780626664000,-246.1,0.00030236,30]
[424172045,1780626664000,-252.35,0.000302,2]
[424172047,1780626664000,-246.64,0.00030236,30]
[424172052,1780626664000,-2587.33711811,0.00030317,2]
[424172048,1780626664000,-246.64,0.00030236,30]
[424172050,1780626664000,-216.9,0.00030236,30]
[424172054,1780626664000,-504.0,0.0003036,5]
[424172055,1780626664000,-761.0,0.00030364,30]
[424172082,1780626664000,-346.75391663,0.00030495,2]
[424172051,1780626664000,-4289.6,0.00030239,2]
[424172084,1780626664000,-165.65343969,0.00030497,2]
[424172124,1780626664000,-507.9434735,0.00030499,2]
[424172123,1780626664000,-472.90149041,0.00030499,2]
[424172145,1780626664000,-455.90559047,0.00030511,2]
[424172125,1780626664000,-488.07838124,0.00030499,2]
[424172119,1780626664000,-512.75110615,0.00030499,2]
[424172121,1780626664000,-338.57938715,0.00030499,2]
[424172137,1780626664000,-455.4272702,0.00030511,2]
[424172127,1780626664000,-499.21844017,0.00030505,2]
[424172128,1780626664000,-615.29369484,0.00030505,2]
[424172126,1780626664000,-660.64529463,0.00030499,2]
[424172131,1780626664000,-419.69156001,0.00030509,2]
[424172132,1780626664000,-656.16683537,0.00030511,2]
[424172133,1780626664000,-800.54786278,0.00030511,2]
[424172130,1780626664000,-378.8082459,0.00030509,2]
[424172129,1780626664000,-201.67035082,0.00030509,2]
[424172135,1780626664000,-536.33724216,0.00030511,2]
[424172136,1780626664000,-210.48293551,0.00030511,2]
[424172134,1780626664000,-367.22211888,0.00030511,2]
[424172138,1780626664000,-355.96706216,0.00030511,2]
[424172140,1780626664000,-525.39451271,0.00030511,2]
[424172141,1780626664000,-410.67593191,0.00030511,2]
[424172139,1780626664000,-623.80773445,0.00030511,2]
[424172142,1780626664000,-534.46921367,0.00030511,2]
[424172143,1780626664000,-440.1853975,0.00030511,2]
[424172146,1780626664000,-503.48709052,0.00030511,2]
[424172144,1780626664000,-734.099844,0.00030511,2]
[424172147,1780626664000,-583.80346073,0.00030523,2]
[424172122,1780626664000,-621.31037861,0.00030499,2]
[424172115,1780626664000,-576.32565307,0.00030499,2]
[424172079,1780626664000,-488.80119502,0.0003049,2]
[424172120,1780626664000,-683.25689811,0.00030499,2]
[424172089,1780626664000,-167.95583231,0.00030498,2]
[424172091,1780626664000,-283.29765806,0.00030498,2]
[424172096,1780626664000,-806.61220608,0.00030498,2]
[424172099,1780626664000,-749.31381119,0.00030498,2]
[424172094,1780626664000,-880.23838301,0.00030498,2]
[424172097,1780626664000,-371.35993863,0.00030498,2]
[424172093,1780626664000,-538.76569732,0.00030498,2]
[424172116,1780626664000,-418.59374807,0.00030499,2]
[424172101,1780626664000,-615.42374453,0.00030498,2]
[424172092,1780626664000,-185.62484082,0.00030498,2]
[424172098,1780626664000,-362.16100369,0.00030498,2]
[424172095,1780626664000,-766.98936109,0.00030498,2]
[424172100,1780626664000,-937.23518358,0.00030498,2]
[424172102,1780626664000,-839.11381065,0.00030498,2]
[424172090,1780626664000,-196.48884048,0.00030498,2]
[424172103,1780626664000,-170.25102275,0.00030499,2]
[424172113,1780626664000,-711.51853692,0.00030499,2]
[424172118,1780626664000,-644.8208616,0.00030499,2]
[424172117,1780626664000,-550.34714847,0.00030499,2]
[424172114,1780626664000,-476.30116103,0.00030499,2]
[424172108,1780626664000,-429.97746117,0.00030499,2]
[424172107,1780626664000,-480.63069629,0.00030499,2]
[424172110,1780626664000,-160.40141568,0.00030499,2]
[424172109,1780626664000,-453.23213073,0.00030499,2]
[424172112,1780626664000,-660.0074872,0.00030499,2]
[424172106,1780626664000,-326.24951181,0.00030499,2]
[424172104,1780626664000,-178.2358,0.00030499,2]
[424172105,1780626664000,-427.13685152,0.00030499,2]
[424172111,1780626664000,-372.51532929,0.00030499,2]
[424172188,1780626665000,-351.06178859,0.00031,5]
[424172192,1780626665000,-1085.43,0.00031,30]
[424172194,1780626665000,-12318.12043222,0.00031028,120]
[424172193,1780626665000,-504.0,0.00031005,6]
[424172184,1780626665000,-934.0,0.00030907,30]
[424172187,1780626665000,-200.0,0.00030994,2]
[424172186,1780626665000,-250.0,0.00030981,7]
[424172182,1780626665000,-150.0,0.00030868,30]
[424172181,1780626665000,-15000.0,0.0003084,2]
[424172183,1780626665000,-1711.94,0.000309,7]
[424172178,1780626665000,-277.18,0.00030822,120]
[424172185,1780626665000,-512.626998,0.00030907,120]
[424172191,1780626665000,-215.77576141,0.00031,30]
[424172211,1780626665000,-980.40593032,0.00031088,2]
[424172190,1780626665000,-1188.11,0.00031,7]
[424172198,1780626665000,-500.0,0.00031061,14]
[424172195,1780626665000,-1246.9231444,0.00031028,120]
[424172197,1780626665000,-200.0,0.0003105,2]
[424172200,1780626665000,-829.09565945,0.00031079,2]
[424172189,1780626665000,-8587.81315971,0.00031,2]
[424172199,1780626665000,-1100.29797876,0.00031079,2]
[424172202,1780626665000,-1008.2652576,0.00031079,2]
[424172208,1780626665000,-825.80661829,0.0003108,2]
[424172212,1780626665000,-243.0,0.00031124,2]
[424172209,1780626665000,-936.21389589,0.00031086,2]
[424172210,1780626665000,-769.11711855,0.00031086,2]
[424172179,1780626665000,-186.17752465,0.00030833,2]
[424172196,1780626665000,-200.0,0.0003105,2]
[424172180,1780626665000,-1638.39671014,0.0003084,2]
[424172163,1780626665000,-427.77189756,0.00030523,2]
[424172176,1780626665000,-200.0,0.00030743,2]
[424172206,1780626665000,-1048.89226332,0.00031079,2]
[424172148,1780626665000,-317.19127502,0.00030523,2]
[424172149,1780626665000,-364.0367666,0.00030523,2]
[424172151,1780626665000,-432.75706051,0.00030523,2]
[424172162,1780626665000,-157.50109676,0.00030523,2]
[424172160,1780626665000,-336.43652496,0.00030523,2]
[424172161,1780626665000,-159.83403232,0.00030523,2]
[424172152,1780626665000,-399.97725993,0.00030523,2]
[424172153,1780626665000,-154.40514762,0.00030523,2]
[424172154,1780626665000,-716.13224516,0.00030523,2]
[424172156,1780626665000,-391.00270155,0.00030523,2]
[424172155,1780626665000,-370.92585577,0.00030523,2]
[424172157,1780626665000,-431.89152006,0.00030523,2]
[424172158,1780626665000,-367.38709948,0.00030523,2]
[424172159,1780626665000,-415.20961672,0.00030523,2]
[424172165,1780626665000,-436.30202957,0.00030523,2]
[424172170,1780626665000,-811.67470956,0.00030555,2]
[424172171,1780626665000,-810.12881472,0.00030555,2]
[424172168,1780626665000,-401.97082603,0.00030523,2]
[424172172,1780626665000,-1205.18,0.0003064,2]
[424172166,1780626665000,-200.91472526,0.00030523,2]
[424172167,1780626665000,-394.85989273,0.00030523,2]
[424172173,1780626665000,-200.0,0.00030687,2]
[424172174,1780626665000,-200.0,0.00030742,2]
[424172175,1780626665000,-200.0,0.00030743,2]
[424172164,1780626665000,-151.46468938,0.00030523,2]
[424172169,1780626665000,-391.65461382,0.00030555,2]
[424172177,1780626665000,-882.52,0.000308,14]
[424172150,1780626665000,-416.78221074,0.00030523,2]